{"text_format":"1","workbook":"xlsx","n_sheets":6,"sheets":["Aportes","Actos","2023","2024","2025","2026"],"not_rendered":{"charts":0,"images":0,"macros":1,"external_links":0,"defined_names":6,"comments":0,"pivot_tables":0},"unopened":[],"bounds":{"document_bytes":16777216,"sheet_cells":100000,"rows_first":2000,"rows_last":500,"rows_between":2000,"halvings":0,"cell_chars":16384,"cell_head_chars":4096},"cells_cut":0,"cells_raw":0,"read":"whole","date_system":"1900"}

{"sheet":"Aportes","index":0,"n_rows":18,"n_cols":13,"rows_kept":18,"cut":false,"hidden":false,"merged":[[1,5,2,5],[3,5,4,5],[3,0,4,1],[1,0,2,1],[0,0,0,1],[0,9,5,11],[0,2,0,8],[1,7,2,7],[3,7,4,7],[3,8,4,8],[1,2,2,2],[3,2,4,2],[1,3,2,4],[5,3,5,6],[5,7,5,8],[3,3,4,4],[1,8,2,8]]}
["v1.9.8",null,"Aporte Caja Notarial - Art. N° 13 Inc. 2"]
["Registro N°:",null,"Titular:",null,null,"Sellos Tit.  ($)\nSellos Ads. ($)",null,"Total\nSellado ($)",0]
[]
[null,null,"Adscripto:",null,null,"Aporte Tit.  ($)\nAporte Ads. ($)",null,"Total\nAporte ($)",0]
[]
[]
["n°","Escritura N°","Fecha Escritura","Cod","Nauraleza de Escritura","Base imponible","Alícuota/Monto DGR","Rep. Sellado DGR","Aporte Caja Notarial","T/A","CUIT Cliente","Observaciones"]
[null,null,null,null,null,null,null,null,null,null,null,null," "]
[null,null,null,null,null,null,null,null,null,null,null,null," "]
[null,null,null,null,null,null,null,null,null,null,null,null," "]
[null,null,null,null,null,null,null,null,null,null,null,null," "]
[null,null,null,null,null,null,null,null,null,null,null,null," "]
[null,null,null,null,null,null,null,null,null,null,null,null," "]
[null,null,null,null,null,null,null,null,null,null,null,null," "]
[null,null,null,null,null,null,null,null,null,null,null,null," "]
[null,null,null,null,null,null,null,null,null,null,null,null," "]
[null,null,null,null,null,null,null,null,null,null,null,null," "]
[null,null,null,null,null,null,null,null,null,null,null,null," "]

{"sheet":"Actos","index":1,"n_rows":184,"n_cols":7,"rows_kept":184,"cut":false,"hidden":true,"merged":[]}
[2,"Actos, contratos y operaciones referidos exclusivamente a inmuebles ubicados fuera de la jurisdicción provincial",68,"Actos, contratos y operaciones referidos exclusivamente a inmuebles ubicados fuera de la jurisdicción provincial",null,1,"Actos, contratos y operaciones no gravadas con alícuota especial, cuando la base imponible no exceda de $1000000"]
[3,"Adquisición de dominio de inmueble por prescripción adquisitiva",63,"Adquisición de dominio de inmueble por prescripción adquisitiva",null,2,"Ordenes de compra y/o servicios del Estado"]
[4,"Aparcería y mediería",8,"Contratos de aparcería y mediería",null,3,"Giros postales"]
[5,"Apertura de crédito",1,"Actos, contratos y operaciones no gravadas con alícuota especial, cuando la base imponible no exceda de $1000000",null,4,"Venta de semovientes en remate público"]
[6,"Aprovisionamiento o suministro",29,"Contratos de compraventa de cosas muebles, mercaderias, semovientes, productos agropecuarios, etc. (con excepción de las operaciones previstas en el artículo 250 del CTP), y contratos de aprovisionamiento o suministro",null,6,"Particiones de herencia realizadas judicial o extrajudicialmente (incluidos testimonios de hijuela)"]
[7,"Aumentos del capital de sociedades comerciales y civiles",26,"Constitución de sociedades comerciales y civiles y modificaciones del capital de sociedades comerciales y civiles (aumento)",null,7,"Contratos de compraventa de caña de azúcar"]
[8,"Boleto de compraventa de inmueble",60,"Instrumentos privados en los que se formalice un negocio jurídico que tenga por objeto la constitución de usufructo o la transmisión del dominio de inmuebles, sus cesiones o transferencias",null,8,"Contratos de aparcería y mediería"]
[9,"Cesión de acciones y derechos fiduciarios",null,null,null,9,"Contratos de permuta que no versen sobre inmuebles"]
[10,"Cesión de boleto de compraventa",null,null,null,10,"Contratos de locación de obra"]
[11,"Cesión de cheque",null,null,null,11,"Contratos de locación de servicios"]
[12,"Cesión de créditos (excepto créditos hipotecarios)",18,"Cesiones de créditos (excepto créditos hipotecarios)",null,12,"Transferencias o cesiones de contratos de locación de obra o servicios"]
[13,"Cesión de cuotas de capital social y participación social (Excepto Acciones de S.A.)",36,"Cesión de cuotas de capital social y participación social",null,13,"Garantías personales (incluye la constituida sobre contratos de locación de inmuebles con destino distinto a viviendas)"]
[14,"Cesión de factura",null,null,null,14,"Facturas conformadas"]
[15,"Cesión de planes de ahorro y similares",null,null,null,15,"Letras de cambio"]
[16,"Cesiones de acciones y derechos hereditarios, vinculados con inmuebles ",61,"Cesiones de acciones y derechos vinculados con inmuebles (hereditarios, posesorios, etc.)",null,16,"Pagarés"]
[17,"Cesiones de acciones y derechos litigiosos vinculados con inmuebles",null,null,null,17,"Rescisiones de contratos"]
[18,"Cesiones de acciones y derechos posesorios vinculados con inmuebles",null,null,null,18,"Cesiones de créditos (excepto créditos hipotecarios)"]
[19,"Cesiones de créditos hipotecarios",62,"Cesiones de créditos hipotecarios",null,19,"Cesiones de derechos y acciones (excepto las que versen sobre inmuebles)"]
[20,"Cesiones de derechos y acciones n.c.p. (excepto las que versen sobre inmuebles)",19,"Cesiones de derechos y acciones (excepto las que versen sobre inmuebles)",null,20,"Pagos con subrogación"]
[21,"Cesiones o transferencias de instrumentos privados en los que se formalice un negocio jurídico que tenga por objeto la constitución de usufructo o la transmisión del dominio de inmuebles",null,null,null,21,"Contratos de mutuo"]
[22,"Cesiones, endosos y sustituciones de contratos de prendas",24,"Cesiones, endosos y sustituciones de contratos de prendas",null,22,"Reconocimientos de deuda cualquiera sea su origen"]
[23,"Comisión",null,null,null,23,"Contratos de prendas"]
[24,"Comodato de bienes muebles",47,"Contratos de comodato de bienes muebles",null,24,"Cesiones, endosos y sustituciones de contratos de prendas"]
[25,"Compra de inmuebles en remate judicial o extrajudicial",65,"Compra de inmuebles en remate judicial o extrajudicial",null,25,"Reinscripción de contratos de prendas"]
[26,"Compraventa de caña de azúcar",7,"Contratos de compraventa de caña de azúcar",null,26,"Constitución de sociedades comerciales y civiles y modificaciones del capital de sociedades comerciales y civiles (aumento)"]
[27,"Compraventa de cosas muebles, mercaderias, semovientes, productos agropecuarios, etc.",null,null,null,27,"Prórroga o reconducción de sociedades comerciales y civiles"]
[28,"Compraventa, permuta y transferencia de automotores en general excepto cero kilómetro",null,null,null,28,"Contratos de compraventa, permuta y transferencia de automotores en general excepto cero kilómetro"]
[29,"Concesiones y sus prórrogas, otorgadas por autoridades nacionales, provinciales o municipales",40,"Concesiones y sus prórrogas, otorgadas por autoridades nacionales, provinciales o municipales",null,29,"Contratos de compraventa de cosas muebles, mercaderias, semovientes, productos agropecuarios, etc. (con excepción de las operaciones previstas en el artículo 250 del CTP), y contratos de aprovisionamiento o suministro"]
[30,"Consignación",null,null,null,30,"Transacciones instrumentadas pública o privadamente, o las realizadas judicial o extrajudicialmente"]
[31,"Constitución de derechos reales sobre bienes inmuebles, sus ampliaciones y prórrogas (hipoteca, usufructo, superficie, etc.)",56,"Constitución de derechos reales sobre bienes inmuebles, sus ampliaciones y prórrogas",null,31,"Contratos de inhibición y embargos voluntarios extrajudiciales"]
[32,"constitución de sociedades comerciales y civiles",null,null,null,32,"Contratos de locación y sublocación de bienes muebles y contratos de leasing que no versen dobre bienes inmuebles"]
[33,"Contradocumentos referentes a bienes INMUEBLES",64,"Contradocumentos referentes a bienes inmuebles",null,33,"Transferencias o cesiones de contratos de locación y sublocación de bienes muebles"]
[34,"Contradocumentos referentes a bienes MUEBLES",42,"Contradocumentos referentes a bienes muebles",null,34,"Contratos de rentas vitalicias"]
[35,"Contrato o título de capitalización y ahorro o de ahorro y préstamo para fines determinados, sujetos o no a sorteo",74,"Cada contrato o título de capitalización y ahorro o de ahorro y préstamo para fines determinados, sujetos o no a sorteo",null,35,"Disolución y liquidación de sociedades"]
[36,"Convenio de desocupación de inmueble",null,null,null,36,"Cesión de cuotas de capital social y participación social"]
[37,"Convenio de honorarios o pacto de cuota litis",null,null,null,37,"Venta o transmisión de establecimientos comerciales o industriales"]
[38,"Convenio marco de pasantías educativas",null,null,null,38,"Transferencias como aporte de capital de establecimientos comerciales o industriales"]
[39,"Dación en pago de bienes inmuebles",null,null,null,39,"Venta de bienes muebles en remate público, excepto préstamos pignoraticios"]
[40,"Depósito",null,null,null,40,"Concesiones y sus prórrogas, otorgadas por autoridades nacionales, provinciales o municipales"]
[41,"Disolución y liquidación de sociedades",35,"Disolución y liquidación de sociedades",null,42,"Contradocumentos referentes a bienes muebles"]
[42,"Distribución",null,null,null,43,"Instrumentos de aclaratorias, conformación o rectificación de actos anteriores que hayan pagado el impuesto cuando no aumente su valor, no cambie su naturaleza o las partes intervinientes, no se modifique la situación de 3° y"]
[43,"Donación (excepto inmuebles)",null,null,null,44,"Modificación parcial de actos o contratos, siempre que no aumente su valor, no cambie su naturaleza o las partes intervinientes, no se modifique la situación de terceros y no se prorrogue o amplie el plazo convenido"]
[44,"Escritura de transferencia de dominio de bienes inmuebles",57,"Contratos de transferencia de dominio de bienes inmuebles (a título gratuito u oneroso o de dominio fiduciario)",null,45,"Opciones de adquisición o venta de bienes o derechos de cualquier naturaleza"]
[45,"Escritura pública que determine la caducidad de una fianza o que libere de un derecho real",81,"Escritura pública que determine la caducidad de una fianza o que libere de un derecho real",null,46,"Opciones para la realización ulterior de cualquier contrato"]
[46,"Exportación, cuando la misma fuese realizada desde la Provincia de Tucumán",51,"Contratos de exportación realizados desde la Provincia de Tucumán",null,47,"Contratos de comodato de bienes muebles"]
[47,"F.08 - Transferencia de vehículos automotores en general",28,"Contratos de compraventa, permuta y transferencia de automotores en general excepto cero kilómetro",null,48,"Instrumentos de valor indeterminado, sin que resulte posible estimar su monto"]
[48,"Factoring",null,null,null,49,"Sociedades con sede principal fuera de la Provincia, que establezcan sucursales o agencias en jurisdicción provincial, sin capital asignado o estimado"]
[49,"Facturas conformadas",14,"Facturas conformadas",null,51,"Contratos de exportación realizados desde la Provincia de Tucumán"]
[50,"Fondo de promoción",null,null,null,52,"Contratos de locación y sublocación de inmuebles con destino a viviendas (incluye expensas)"]
[51,"Franquicia",null,null,null,53,"Transferencias o cesiones de contratos de locación o sublocación de inmuebles con destino a viviendas"]
[52,"Garantías personales (fianza, aval, etc.)",13,"Garantías personales (incluye la constituida sobre contratos de locación de inmuebles con destino distinto a viviendas)",null,54,"Escritura pública de transferencia de inmuebles como aporte de capital en la constitución de sociedades"]
[53,"Giros postales",3,"Giros postales",null,55,"Contratos de locación y sublocación de inmuebles con destino distinto a viviendas y sus transferencias o cesiones (incluye arrendamientos rurales), y contratos de leasing inmobiliario"]
[54,"Indemnización o gratificación",null,null,null,56,"Constitución de derechos reales sobre bienes inmuebles, sus ampliaciones y prórrogas"]
[55,"Inhibición y embargos voluntarios extrajudiciales",31,"Contratos de inhibición y embargos voluntarios extrajudiciales",null,57,"Contratos de transferencia de dominio de bienes inmuebles (a título gratuito u oneroso o de dominio fiduciario)"]
[56,"Instrumentos de aclaratorias, conformación o rectificación de actos anteriores que hayan pagado el impuesto cuando no aumente su valor, no cambie su naturaleza o las partes intervinientes, no se modifique la situación de terceros",43,"Instrumentos de aclaratorias, conformación o rectificación de actos anteriores que hayan pagado el impuesto cuando no aumente su valor, no cambie su naturaleza o las partes intervinientes, no se modifique la situación de 3° y",null,58,"Contratos de permutas sobre bienes inmuebles"]
[57,"Instrumentos de valor indeterminado, Cesión de acciones y derechos que no versen sobre inmuebles",48,"Instrumentos de valor indeterminado, sin que resulte posible estimar su monto",null,59,"Contratos de daciones en pago de bienes inmuebles"]
[58,"Instrumentos de valor indeterminado, Cesión gratuita de acciones y derechos sobre inmuebles",null,null,null,60,"Instrumentos privados en los que se formalice un negocio jurídico que tenga por objeto la constitución de usufructo o la transmisión del dominio de inmuebles, sus cesiones o transferencias"]
[59,"Instrumentos de valor indeterminado, Comisión",null,null,null,61,"Cesiones de acciones y derechos vinculados con inmuebles (hereditarios, posesorios, etc.)"]
[60,"Instrumentos de valor indeterminado, Consignación",null,null,null,62,"Cesiones de créditos hipotecarios"]
[61,"Instrumentos de valor indeterminado, Convenio de desocupación de inmueble",null,null,null,63,"Adquisición de dominio de inmueble por prescripción adquisitiva"]
[62,"Instrumentos de valor indeterminado, Convenio de honorarios o pacto de cuota litis",null,null,null,64,"Contradocumentos referentes a bienes inmuebles"]
[63,"Instrumentos de valor indeterminado, Convenio de pasantías educativas",null,null,null,65,"Compra de inmuebles en remate judicial o extrajudicial"]
[64,"Instrumentos de valor indeterminado, Distribución",null,null,null,66,"Contratos de comodato de inmuebles"]
[65,"Instrumentos de valor indeterminado, Franquicia",null,null,null,67,"Documentos privados sobre ocupación gratuita de inmuebles (tenencia precaria)"]
[66,"Instrumentos de valor indeterminado, Garantía",null,null,null,68,"Actos, contratos y operaciones referidos exclusivamente a inmuebles ubicados fuera de la jurisdicción provincial"]
[67,"Instrumentos de valor indeterminado, locación de servicios",null,null,null,69,"Adelantos en cuenta corriente (trimestral, liquidados mensualmente por numerales)"]
[68,"Instrumentos de valor indeterminado, Otro convenio de tipo innominado",null,null,null,70,"Créditos al descubierto (trimestral, liquidados mensualmente por numerales)"]
[69,"Instrumentos de valor indeterminado, Permuta de cosas muebles",null,null,null,71,"Giros y transferencias bancarias"]
[70,"Instrumentos de valor indeterminado, Rentas vitalicias",null,null,null,72,"Contratos de seguro (excepto los de vida), sus prórrogas y renovaciones que se extiendan en la Provincia o surtan efectos legales en la misma o versen sobre bienes situados en ella"]
[71,"Instrumentos de valor indeterminado, sin que resulte posible estimar su monto",null,null,null,73,"Endosos de contratos de seguros cuando se transfiera la propiedad"]
[72,"Instrumentos privados en los que se formalice un negocio jurídico que tenga por objeto la constitución de usufructo o la transmisión del dominio de inmuebles",null,null,null,74,"Cada contrato o título de capitalización y ahorro o de ahorro y préstamo para fines determinados, sujetos o no a sorteo"]
[73,"Know how",null,null,null,75,"Contratos de reaseguro"]
[74,"Letras de cambio",15,"Letras de cambio",null,76,"Certificados de cobertura emitidos por compañías aseguradoras"]
[75,"Llave",null,null,null,77,"Protocolización de actos onerosos"]
[76,"Locación de obra (privada y pública)",10,"Contratos de locación de obra",null,78,"Protocolización de actos onerosos cuando el impuesto estuviera satisfecho en el documento original"]
[77,"Locación de servicios",11,"Contratos de locación de servicios",null,79,"Protestos por falta de aceptación o pago (impuesto mínimo: $5)"]
[78,"Locación y sublocación de bienes muebles",32,"Contratos de locación y sublocación de bienes muebles y contratos de leasing que no versen dobre bienes inmuebles",null,80,"Recibos o cartas de pago instrumentadas por escritura pública"]
[79,"Mandato",null,null,null,81,"Escritura pública que determine la caducidad de una fianza o que libere de un derecho real"]
[80,"Modificación parcial de actos o contratos, siempre que no aumente su valor, no cambie su naturaleza o las partes intervinientes, no se modifique la situación de terceros y no se prorrogue o amplie el plazo convenido",44,"Modificación parcial de actos o contratos, siempre que no aumente su valor, no cambie su naturaleza o las partes intervinientes, no se modifique la situación de terceros y no se prorrogue o amplie el plazo convenido",null,82,"Poderes y sus sustituciones, por cada poderdante"]
[81,"Mutuo",21,"Contratos de mutuo",null,83,"La primera hoja de escritura pública donde no surjan o se protocolicen obligaciones a las que corresponda un impuesto especial"]
[82,"Opciones de adquisición o venta de bienes o derechos de cualquier naturaleza",45,"Opciones de adquisición o venta de bienes o derechos de cualquier naturaleza",null,84,"Cada hoja de protocolo notarial con numeración impresa por el Colegio de Escribanos, sin perjuicio del impuesto que corresponda al acto otorgado"]
[83,"Opciones para la realización ulterior de cualquier contrato",46,"Opciones para la realización ulterior de cualquier contrato",null,85,"Cada hoja de los testimonios de actuaciones o escrituras públicas independiente del impuesto que pudiere corresponder"]
[84,"Órdenes de compra y/o servicios del Estado",2,"Ordenes de compra y/o servicios del Estado",null,86,"Cada hoja de los certificados que expidan los escribanos u otros funcionarios que hagan las veces de tales"]
[85,"Pagos con subrogación",20,"Pagos con subrogación",null,87,"Cada certificación de fotocopias"]
[86,"Particiones de herencia realizadas judicial o extrajudicialmente  (testimonios de hijuela).",6,"Particiones de herencia realizadas judicial o extrajudicialmente (incluidos testimonios de hijuela)",null,88,"Liquidaciones o resúmenes periódicos que produzcan las entidades emisoras de tarjetas de crédito o compra"]
[87,"Pasantía individual",null,null,null,89,"Contratos que suscriban las entidades financieras con sus clientes para la utilización por parte de estos de tarjetas de crédito o de compra"]
[88,"Permuta que no versen sobre inmuebles",9,"Contratos de permuta que no versen sobre inmuebles",null,90,"Tasa general de actuación administrativa, por cada hoja"]
[89,"Permuta sobre bienes inmuebles",58,"Contratos de permutas sobre bienes inmuebles",null,91,"Tasa -R.I.- documentos por los cuales se inscriban o anoten actos que constituyan, transmitan, declaren o modifiquen el dominio"]
[90,"Prendas",23,"Contratos de prendas",null,92,"Tasa -R.I.- hipotecas, sus reinscripciones, cesiones y divisiones"]
[91,"Préstamo bancario",null,null,null,93,"Tasa -R.I.- anotaciones de embargo"]
[92,"Prórroga o reconducción de sociedades comerciales y civiles",27,"Prórroga o reconducción de sociedades comerciales y civiles",null,94,"Tasa -R.I.- inscripción o anotación de cada acto que por su naturaleza no tuviera precio o no se le pudiera fijar valor"]
[93,"Reconocimientos de deuda cualquiera sea su origen",22,"Reconocimientos de deuda cualquiera sea su origen",null,95,"Tasa -R.I.- inscripción o anotación del documento aclaratorio o rectificatorio de asiento ya efectuado, la aceptación y reconocimiento de derecho real inscripto y el traslado de hipotecas al Régimen de Propiedad Horizontal"]
[94,"Reinscripción de contratos de prendas",25,"Reinscripción de contratos de prendas",null,96,"Tasa -R.I.- reducción o cancelación de cada derecho real ya inscripto"]
[95,"Rentas vitalicias",34,"Contratos de rentas vitalicias",null,97,"Tasa -R.I.- anotación de promesas de venta, sus cesiones y/o reinscripciones"]
[96,"Rescisiones de contratos",17,"Rescisiones de contratos",null,98,"Tasa -R.I.- cesiones de acciones y derechos hereditarios anteriores a la registración de la respectiva hijuela"]
[97,"Seña",null,null,null,99,"Tasa -R.C.- emancipación por habilitación de edad"]
[98,"Sociedades con sede principal fuera de la Provincia, que establezcan sucursales o agencias en jurisdicción provincial, sin capital asignado o estimado",49,"Sociedades con sede principal fuera de la Provincia, que establezcan sucursales o agencias en jurisdicción provincial, sin capital asignado o estimado",null,100,"Artículo 41 inciso 3 de la Ley Impositiva"]
[99,"Trabajo individual",null,null,null,101,"Exento por artículo 278 del Código Tributario Provincial"]
[100,"Transacciones instrumentadas pública o privadamente, realizadas judicial o extrajudicialmente",30,"Transacciones instrumentadas pública o privadamente, o las realizadas judicial o extrajudicialmente",null,102,"Exento por leyes especiales"]
[101,"Transferencias como aporte de capital de establecimientos comerciales o industriales",38,"Transferencias como aporte de capital de establecimientos comerciales o industriales",null,999]
[102,"Transferencias o cesiones de contratos de locación de obra o servicios",12,"Transferencias o cesiones de contratos de locación de obra o servicios"]
[103,"Transferencias o cesiones de contratos de locación y sublocación de bienes muebles",33,"Transferencias o cesiones de contratos de locación y sublocación de bienes muebles"]
[104,"Venta de bienes muebles en remate público"]
[105,"Venta de semovientes (ganado) en remate público",39,"Venta de bienes muebles en remate público, excepto préstamos pignoraticios"]
[106,"Venta o transmisión de establecimientos comerciales o industriales",4,"Venta de semovientes en remate público"]
[108,"Negociación, compraventa, cambio o disposición de letras de tesorería, bonos, títulos públicos o privados, acciones, debentures y demás valores mobiliarios",37,"Venta o transmisión de establecimientos comerciales o industriales"]
[108,"Negociación, compraventa, cambio o disposición de letras de tesorería, bonos, títulos públicos o privados, acciones, debentures y demí¡s valores mobiliarios",101,"Exento por artículo 278 del Código Tributario Provincial"]
[109,"cancelación de prendas e hipotecas"]
[110,"Transformaciones de sociedades en otras de tipo jurídico distinto, que cumplan los recaudos establecidos en el inc. 28 del art.278 CTP"]
[111,"Convenios entre cónyuges en materia de separación de bienes y pensiones alimenticias"]
[112,"Divisiones de condominio"]
[113,"Contratos participativos o de maquila para la producción de azúcares"]
[114,"Contratos de mandato para la venta de azúcares producidos conforme al régimen de maquila"]
[115,"Contratos de locación y sublocación de inmuebles, con destino a viviendas, cuyo importe por todo concepto no sea mayor a pesos ochocientos ($ 800) mensuales, cuando la duración del contrato no sea mayor a tres años."]
[116,"Pagarés librados a la orden del Superior Gobierno de la Provincia por contribuyentes de tributos provinciales que se acojan a regímenes de facilidades de pago"]
[117,"Contratos de locación y sublocación de inmuebles con destino a viviendas (incluye expensas)",52,"Contratos de locación y sublocación de inmuebles con destino a viviendas (incluye expensas)"]
[118,"Transferencias o cesiones de contratos de locación o sublocación de inmuebles con destino a viviendas",53,"Transferencias o cesiones de contratos de locación o sublocación de inmuebles con destino a viviendas"]
[119,"Expensas a cargo del locatario, de valor indeterminado, sin que resulte posible estimar su monto"]
[120,"Contratos de locación y sublocación de inmuebles con  destino distinto a viviendas",55,"Contratos de locación y sublocación de inmuebles con destino distinto a viviendas y sus transferencias o cesiones (incluye arrendamientos rurales), y contratos de leasing inmobiliario"]
[121,"Transferencias o cesiones de contratos de locación o sublocación de inmuebles con destino distinto a viviendas"]
[122,"Arriendo rural"]
[123,"Fiador o codeudor solidario de contrato de locación y sublocación de inmueble con destino distinto a viviendas"]
[124,"Depósito de garantía"]
[125,"Pagaré",16,"Pagarés"]
[127,"Pagaré emergente no negociable (Art. 239 CTP)"]
[128,"Otros contratos de tipo innominado"]
[129,"Contrato de comodato de inmuebles",66,"Contratos de comodato de inmuebles"]
[130,"Documentos privados sobre ocupación gratuita de inmuebles (tenencia precaria)",67,"Documentos privados sobre ocupación gratuita de inmuebles (tenencia precaria)"]
[133,"Escritura pública de transferencia de inmuebles  como aporte de capital en la constitución de sociedades",54,"Escritura pública de transferencia de inmuebles como aporte de capital en la constitución de sociedades"]
[134,"Protocolización de actos onerosos",77,"Protocolización de actos onerosos"]
[135,"Protocolización de actos onerosos, cuando el  impuesto estuviera satisfecho en el documento original",78,"Protocolización de actos onerosos cuando el impuesto estuviera satisfecho en el documento original"]
[136,"Protestos por falta de aceptación o pago, sobre el  monto de la obligación",79,"Protestos por falta de aceptación o pago (impuesto mínimo: $5)"]
[137,"Recibos o cartas de pago instrumentadas por  escritura pública",80,"Recibos o cartas de pago instrumentadas por escritura pública"]
[138,"Retribución del fiduciario"]
[139,"Transferencia de dominio fiduciario (excepto bienes inmuebles)"]
[140,"Contratos de leasing que no versen sobre bienes inmuebles"]
[141,"Escritura de Transferencia de dominio de bienes  inmuebles, permutas o daciones en pago",59,"Contratos de daciones en pago de bienes inmuebles"]
[142,"Contratos de Leasing inmobiliario"]
[143,"Contrato de transporte de cosas"]
[144,"Contrato de transporte de personas"]
[145,"Contrato de Corretaje"]
[146,"Uniones Transitorias"]
[147,"Negocios en Participacion"]
[148,"Agrupaciones de Colaboracion"]
[149,"Consorcio de cooperacion"]
[150,"Contrato de juegos y apuestas"]
[151,"Cesión de Deuda"]
[152,"Asunción de Deuda"]
[153,"Contrato de arbitraje"]
[154,"Underwritting"]
[155,"Expensas a cargo del locatario"]
[300,"Actos, contratos y operaciones no gravadas con alícuota especial"]
[301,"Adelantos en cuenta corriente (trimestral, liquidados mensualmente por numerales)",69,"Adelantos en cuenta corriente (trimestral, liquidados mensualmente por numerales)"]
[302,"Créditos al descubierto (trimestral, liquidados mensualmente por numerales)",70,"Créditos al descubierto (trimestral, liquidados mensualmente por numerales)"]
[303,"Giros y transferencias bancarias",71,"Giros y transferencias bancarias"]
[304,"Contratos de seguro (excepto los de vida), sus prórrogas y renovaciones que se extiendan en la Provincia o surtan efectos legales en la misma o versen sobre bienes situados en ella",72,"Contratos de seguro (excepto los de vida), sus prórrogas y renovaciones que se extiendan en la Provincia o surtan efectos legales en la misma o versen sobre bienes situados en ella"]
[305,"Endosos de contratos de seguros cuando se transfiera la propiedad",73,"Endosos de contratos de seguros cuando se transfiera la propiedad"]
[306,"Contratos de reaseguro",75,"Contratos de reaseguro"]
[307,"Certificados de cobertura emitidos por companías aseguradoras",76,"Certificados de cobertura emitidos por compañías aseguradoras"]
[308,"Poderes y sus sustituciones, por cada poderdante",82,"Poderes y sus sustituciones, por cada poderdante"]
[309,"La primera hoja de escritura pública donde no surjan o se protocolicen obligaciones a las que corresponda un impuesto especial",83,"La primera hoja de escritura pública donde no surjan o se protocolicen obligaciones a las que corresponda un impuesto especial"]
[310,"Cada hoja de protocolo notarial con numeración impresa por el Colegio de Escribanos, sin perjuicio del impuesto que corresponda al acto otorgado",84,"Cada hoja de protocolo notarial con numeración impresa por el Colegio de Escribanos, sin perjuicio del impuesto que corresponda al acto otorgado"]
[311,"Cada hoja de los testimonios de actuaciones o escrituras públicas independiente del impuesto que pudiere corresponder",85,"Cada hoja de los testimonios de actuaciones o escrituras públicas independiente del impuesto que pudiere corresponder"]
[312,"Cada hoja de los certificados que expidan los escribanos u otros funcionarios que hagan las veces de tales",86,"Cada hoja de los certificados que expidan los escribanos u otros funcionarios que hagan las veces de tales"]
[313,"Cada certificación de fotocopias",87,"Cada certificación de fotocopias"]
[314,"Liquidaciones o resúmenes periódicos que  produzcan las entidades emisoras de tarjetas de crédito o compra",88,"Liquidaciones o resúmenes periódicos que produzcan las entidades emisoras de tarjetas de crédito o compra"]
[315,"Contratos que suscriban las entidades financieras con sus clientes para la utilización por parte de estos de tarjetas de crÚdito o de compra",89,"Contratos que suscriban las entidades financieras con sus clientes para la utilización por parte de estos de tarjetas de crédito o de compra"]
[316,"Articulo 41 inciso 3 de la Ley Impositiva",100,"Artículo 41 inciso 3 de la Ley Impositiva"]
[400,"Tasa general de actuación administrativa, por cada hoja",90,"Tasa general de actuación administrativa, por cada hoja"]
[401,"Tasa -Registro Inmobiliario- documentos por los cuales se inscriban o anoten actos que constituyan, transmitan, declaren o modifiquen el dominio",91,"Tasa -R.I.- documentos por los cuales se inscriban o anoten actos que constituyan, transmitan, declaren o modifiquen el dominio"]
[402,"Tasa -Registro Inmobiliario- hipotecas, sus reinscripciones, cesiones y divisiones",92,"Tasa -R.I.- hipotecas, sus reinscripciones, cesiones y divisiones"]
[403,"Tasa -Registro Inmobiliario- anotaciones de embargo",93,"Tasa -R.I.- anotaciones de embargo"]
[404,"Tasa -Registro Inmobiliario- inscripción o anotación de cada acto que por su naturaleza no tuviera precio o no se le pudiera fijar valor",94,"Tasa -R.I.- inscripción o anotación de cada acto que por su naturaleza no tuviera precio o no se le pudiera fijar valor"]
[405,"Tasa -Registro Inmobiliario- inscripción o anotación del documento aclaratorio o rectificatorio de asientos ya efectuados, la aceptación y reconocimiento de derecho real inscripto y el traslado de hipotecas al Rég. PH",95,"Tasa -R.I.- inscripción o anotación del documento aclaratorio o rectificatorio de asiento ya efectuado, la aceptación y reconocimiento de derecho real inscripto y el traslado de hipotecas al Régimen de Propiedad Horizontal"]
[406,"Tasa -Registro Inmobiliario- reducción o cancelación de cada derecho real ya inscripto",96,"Tasa -R.I.- reducción o cancelación de cada derecho real ya inscripto"]
[407,"Tasa -Registro Inmobiliario- anotación de promesas de venta, sus cesiones y/o reinscripciones",97,"Tasa -R.I.- anotación de promesas de venta, sus cesiones y/o reinscripciones"]
[408,"Tasa -Registro Inmobiliario- cesiones de acciones y derechos hereditarios anteriores a la registración de la respectiva hijuela",98,"Tasa -R.I.- cesiones de acciones y derechos hereditarios anteriores a la registración de la respectiva hijuela"]
[409,"Tasa -Registro Civil- emancipación por habilitación de edad",99,"Tasa -R.C.- emancipación por habilitación de edad"]
[1000,"Créditos otorgados por entidades financieras en el  marco de la Comunicación \"A\" 6943 del BCRA. Dto. 686/3(ME)-2020",102,"Exento por leyes especiales"]
[1007,"Sujetos cuya única actividad sea la artística (escritores, pintores, escultores, músicos y demí¡s artistas de similares características) que celebren actos, contratos y operaciones en el marco de sus actividades artísticas, siempre que no sean contribuyentes de CM. Dto. 2.609/3 (ME)-2020"]
[1008,"Instrumentos que se formalicen en el marco de la Ley Nacional NÂ° 27.613. Dto. 1463/3 (ME)-2021"]
[1012,"Instrumentos que se formalicen con motivo del desarrollo de actividades realizadas en el marco de la Ley 9059. Dto. 2735/3 (ME) 2018"]
[1013,"Intrumentos que se celebren para el desarrollo de actividades de producción, representación, composición e interpretación de eventos culturales, académicos, educativos, científicos, recreativos y sociales, congresos y espectí¡culos teatrales, musicales, artísticos y circenses que se realicen en espacios culturales pertenecientes al Estado Nacional, Provincial, Municipal y Comunal y en salas de teatro independientes. Dto. 3929/3-ME-2016"]
[999,null,999]

{"sheet":"2023","index":2,"n_rows":103,"n_cols":9,"rows_kept":103,"cut":false,"hidden":true,"merged":[]}
[1,1,null,2023,1,{"$f":"MONTH(H1+$D$10)","v":1},{"$f":"COUNTIF($F$1:$F1,F1)","v":1},{"$f":"DATE($D$1,1,1) - WEEKDAY(DATE($D$1,1,1),16) +1 +(E1-1)*7+$D$11","v":"2022-12-31"},{"$f":"H1+6","v":"2023-01-06"}]
[null,0.2,null,null,2,{"$f":"MONTH(H2+$D$10)","v":1},{"$f":"COUNTIF($F$1:$F2,F2)","v":2},{"$f":"DATE($D$1,1,1) - WEEKDAY(DATE($D$1,1,1),16) +1 +(E2-1)*7+$D$11","v":"2023-01-07"},"2023-01-13"]
[null,0.2,null,null,3,1,{"$f":"COUNTIF($F$1:$F3,F3)","v":3},"2023-01-14","2023-01-20"]
[null,0.2,null,null,4,1,{"$f":"COUNTIF($F$1:$F4,F4)","v":4},"2023-01-21","2023-01-27"]
[null,0.2,null,null,5,1,{"$f":"COUNTIF($F$1:$F5,F5)","v":5},"2023-01-28","2023-02-03"]
[6,0.5,null,null,6,2,{"$f":"COUNTIF($F$1:$F6,F6)","v":1},"2023-02-04","2023-02-10"]
[7,0.5,null,null,7,2,{"$f":"COUNTIF($F$1:$F7,F7)","v":2},"2023-02-11","2023-02-17"]
[8,1,null,null,8,2,{"$f":"COUNTIF($F$1:$F8,F8)","v":3},"2023-02-18","2023-02-24"]
[9,1,null,null,9,2,{"$f":"COUNTIF($F$1:$F9,F9)","v":4},"2023-02-25","2023-03-03"]
[10,1,null,2,10,3,{"$f":"COUNTIF($F$1:$F10,F10)","v":1},"2023-03-04","2023-03-10"]
[11,1,null,0,11,3,{"$f":"COUNTIF($F$1:$F11,F11)","v":2},"2023-03-11","2023-03-17"]
[12,1,null,null,12,3,{"$f":"COUNTIF($F$1:$F12,F12)","v":3},"2023-03-18","2023-03-24"]
[13,1,null,null,13,3,{"$f":"COUNTIF($F$1:$F13,F13)","v":4},"2023-03-25","2023-03-31"]
[14,1,null,null,14,4,{"$f":"COUNTIF($F$1:$F14,F14)","v":1},"2023-04-01","2023-04-07"]
[15,1,null,null,15,4,{"$f":"COUNTIF($F$1:$F15,F15)","v":2},"2023-04-08","2023-04-14"]
[16,1,null,null,16,4,{"$f":"COUNTIF($F$1:$F16,F16)","v":3},"2023-04-15","2023-04-21"]
[17,1,null,null,17,4,{"$f":"COUNTIF($F$1:$F17,F17)","v":4},"2023-04-22","2023-04-28"]
[18,1,null,null,18,5,{"$f":"COUNTIF($F$1:$F18,F18)","v":1},"2023-04-29","2023-05-05"]
[19,1,null,null,19,5,{"$f":"COUNTIF($F$1:$F19,F19)","v":2},"2023-05-06","2023-05-12"]
[20,1,null,null,20,5,{"$f":"COUNTIF($F$1:$F20,F20)","v":3},"2023-05-13","2023-05-19"]
[21,1,null,null,21,5,{"$f":"COUNTIF($F$1:$F21,F21)","v":4},"2023-05-20","2023-05-26"]
[22,1,null,null,22,5,{"$f":"COUNTIF($F$1:$F22,F22)","v":5},"2023-05-27","2023-06-02"]
[23,1,null,null,23,6,{"$f":"COUNTIF($F$1:$F23,F23)","v":1},"2023-06-03","2023-06-09"]
[24,1,null,null,24,6,{"$f":"COUNTIF($F$1:$F24,F24)","v":2},"2023-06-10","2023-06-16"]
[25,1,null,null,25,6,{"$f":"COUNTIF($F$1:$F25,F25)","v":3},"2023-06-17","2023-06-23"]
[26,1,null,null,26,6,{"$f":"COUNTIF($F$1:$F26,F26)","v":4},"2023-06-24","2023-06-30"]
[27,1,null,null,27,7,{"$f":"COUNTIF($F$1:$F27,F27)","v":1},"2023-07-01","2023-07-07"]
[28,1,null,null,28,7,{"$f":"COUNTIF($F$1:$F28,F28)","v":2},"2023-07-08","2023-07-14"]
[29,1.5,null,null,29,7,{"$f":"COUNTIF($F$1:$F29,F29)","v":3},"2023-07-15","2023-07-21"]
[30,2,null,null,30,7,{"$f":"COUNTIF($F$1:$F30,F30)","v":4},"2023-07-22","2023-07-28"]
[31,2,null,null,31,7,{"$f":"COUNTIF($F$1:$F31,F31)","v":5},"2023-07-29","2023-08-04"]
[32,2,null,null,32,8,{"$f":"COUNTIF($F$1:$F32,F32)","v":1},"2023-08-05","2023-08-11"]
[33,2,null,null,33,8,{"$f":"COUNTIF($F$1:$F33,F33)","v":2},"2023-08-12","2023-08-18"]
[34,2,null,null,34,8,{"$f":"COUNTIF($F$1:$F34,F34)","v":3},"2023-08-19","2023-08-25"]
[35,2,null,null,35,8,{"$f":"COUNTIF($F$1:$F35,F35)","v":4},"2023-08-26","2023-09-01"]
[36,2,null,null,36,9,{"$f":"COUNTIF($F$1:$F36,F36)","v":1},"2023-09-02","2023-09-08"]
[37,2,null,null,37,9,{"$f":"COUNTIF($F$1:$F37,F37)","v":2},"2023-09-09","2023-09-15"]
[38,2,null,null,38,9,{"$f":"COUNTIF($F$1:$F38,F38)","v":3},"2023-09-16","2023-09-22"]
[39,3,null,null,39,9,{"$f":"COUNTIF($F$1:$F39,F39)","v":4},"2023-09-23","2023-09-29"]
[40,3,null,null,40,10,{"$f":"COUNTIF($F$1:$F40,F40)","v":1},"2023-09-30","2023-10-06"]
[41,null,0,null,41,10,{"$f":"COUNTIF($F$1:$F41,F41)","v":2},"2023-10-07","2023-10-13"]
[42,null,300,null,42,10,{"$f":"COUNTIF($F$1:$F42,F42)","v":3},"2023-10-14","2023-10-20"]
[43,null,300,null,43,10,{"$f":"COUNTIF($F$1:$F43,F43)","v":4},"2023-10-21","2023-10-27"]
[44,null,300,null,44,10,{"$f":"COUNTIF($F$1:$F44,F44)","v":5},"2023-10-28","2023-11-03"]
[45,null,300,null,45,11,{"$f":"COUNTIF($F$1:$F45,F45)","v":1},"2023-11-04","2023-11-10"]
[46,null,300,null,46,11,{"$f":"COUNTIF($F$1:$F46,F46)","v":2},"2023-11-11","2023-11-17"]
[47,null,300,null,47,11,{"$f":"COUNTIF($F$1:$F47,F47)","v":3},"2023-11-18","2023-11-24"]
[48,null,3000,null,48,11,{"$f":"COUNTIF($F$1:$F48,F48)","v":4},"2023-11-25","2023-12-01"]
[49,null,10000,null,49,12,{"$f":"COUNTIF($F$1:$F49,F49)","v":1},"2023-12-02","2023-12-08"]
[50,null,50,null,50,12,{"$f":"COUNTIF($F$1:$F50,F50)","v":2},"2023-12-09","2023-12-15"]
[51,0.1,null,null,51,12,{"$f":"COUNTIF($F$1:$F51,F51)","v":3},"2023-12-16","2023-12-22"]
[52,0.5,null,null,52,12,{"$f":"COUNTIF($F$1:$F52,F52)","v":4},"2023-12-23","2023-12-29"]
[53,0.5,null,null,53,12,{"$f":"COUNTIF($F$1:$F53,F53)","v":5},"2023-12-30","2024-01-05"]
[54,1]
[55,2]
[56,2]
[57,2]
[58,2]
[59,2]
[60,2]
[61,2]
[62,2]
[63,3]
[64,3]
[65,3]
[66,null,2400]
[67,null,2400]
[68,null,2400]
[69,1]
[70,1]
[71,0.2]
[72,2]
[73,0.4]
[74,1]
[75,2]
[76,null,780]
[77,3]
[78,null,300]
[79,1]
[80,null,150]
[81,null,600]
[82,null,90,"n° otorgantes"]
[83,null,300]
[84,null,90]
[85,null,90]
[86,null,90]
[87,null,90]
[88,1]
[89,1]
[90,null,50]
[91,null,0]
[92,null,0]
[93,null,0]
[94,null,0]
[95,null,0]
[96,null,0]
[97,null,0]
[98,null,0]
[99,null,3]
[100,null,70]
[101,null,0]
[102,null,0]
[999,null,300]

{"sheet":"2024","index":3,"n_rows":103,"n_cols":9,"rows_kept":103,"cut":false,"hidden":true,"merged":[]}
[1,1,null,2024,1,13,{"$f":"COUNTIF($F$1:$F1,F1)","v":1},{"$f":"DATE($D$1,1,1) - WEEKDAY(DATE($D$1,1,1),16) +1 +(E1-1)*7 +$D$11","v":"2023-12-30"},{"$f":"H1+6","v":"2024-01-05"}]
[2,0.2,null,null,2,{"$f":"MONTH(H2+$D$10)","v":1},{"$f":"COUNTIF($F$1:$F2,F2)","v":1},{"$f":"DATE($D$1,1,1) - WEEKDAY(DATE($D$1,1,1),16) +1 +(E2-1)*7 +$D$11","v":"2024-01-06"},"2024-01-12"]
[3,0.2,null,null,3,1,{"$f":"COUNTIF($F$1:$F3,F3)","v":2},"2024-01-13","2024-01-19"]
[4,0.2,null,null,4,1,{"$f":"COUNTIF($F$1:$F4,F4)","v":3},"2024-01-20","2024-01-26"]
[5,0.2,null,null,5,1,{"$f":"COUNTIF($F$1:$F5,F5)","v":4},"2024-01-27","2024-02-02"]
[6,0.5,null,null,6,2,{"$f":"COUNTIF($F$1:$F6,F6)","v":1},"2024-02-03","2024-02-09"]
[7,0.5,null,null,7,2,{"$f":"COUNTIF($F$1:$F7,F7)","v":2},"2024-02-10","2024-02-16"]
[8,1,null,null,8,2,{"$f":"COUNTIF($F$1:$F8,F8)","v":3},"2024-02-17","2024-02-23"]
[9,1,null,null,9,2,{"$f":"COUNTIF($F$1:$F9,F9)","v":4},"2024-02-24","2024-03-01"]
[10,1,null,0,10,3,{"$f":"COUNTIF($F$1:$F10,F10)","v":1},"2024-03-02","2024-03-08"]
[11,1,null,0,11,3,{"$f":"COUNTIF($F$1:$F11,F11)","v":2},"2024-03-09","2024-03-15"]
[12,1,null,null,12,3,{"$f":"COUNTIF($F$1:$F12,F12)","v":3},"2024-03-16","2024-03-22"]
[13,1,null,null,13,3,{"$f":"COUNTIF($F$1:$F13,F13)","v":4},"2024-03-23","2024-03-29"]
[14,1,null,null,14,3,{"$f":"COUNTIF($F$1:$F14,F14)","v":5},"2024-03-30","2024-04-05"]
[15,1,null,null,15,4,{"$f":"COUNTIF($F$1:$F15,F15)","v":1},"2024-04-06","2024-04-12"]
[16,1,null,null,16,4,{"$f":"COUNTIF($F$1:$F16,F16)","v":2},"2024-04-13","2024-04-19"]
[17,1,null,null,17,4,{"$f":"COUNTIF($F$1:$F17,F17)","v":3},"2024-04-20","2024-04-26"]
[18,1,null,null,18,4,{"$f":"COUNTIF($F$1:$F18,F18)","v":4},"2024-04-27","2024-05-03"]
[19,1,null,null,19,5,{"$f":"COUNTIF($F$1:$F19,F19)","v":1},"2024-05-04","2024-05-10"]
[20,1,null,null,20,5,{"$f":"COUNTIF($F$1:$F20,F20)","v":2},"2024-05-11","2024-05-17"]
[21,1,null,null,21,5,{"$f":"COUNTIF($F$1:$F21,F21)","v":3},"2024-05-18","2024-05-24"]
[22,1,null,null,22,5,{"$f":"COUNTIF($F$1:$F22,F22)","v":4},"2024-05-25","2024-05-31"]
[23,1,null,null,23,6,{"$f":"COUNTIF($F$1:$F23,F23)","v":1},"2024-06-01","2024-06-07"]
[24,1,null,null,24,6,{"$f":"COUNTIF($F$1:$F24,F24)","v":2},"2024-06-08","2024-06-14"]
[25,1,null,null,25,6,{"$f":"COUNTIF($F$1:$F25,F25)","v":3},"2024-06-15","2024-06-21"]
[26,1,null,null,26,6,{"$f":"COUNTIF($F$1:$F26,F26)","v":4},"2024-06-22","2024-06-28"]
[27,1,null,null,27,6,{"$f":"COUNTIF($F$1:$F27,F27)","v":5},"2024-06-29","2024-07-05"]
[28,1,null,null,28,7,{"$f":"COUNTIF($F$1:$F28,F28)","v":1},"2024-07-06","2024-07-12"]
[29,1.5,null,null,29,7,{"$f":"COUNTIF($F$1:$F29,F29)","v":2},"2024-07-13","2024-07-19"]
[30,2,null,null,30,7,{"$f":"COUNTIF($F$1:$F30,F30)","v":3},"2024-07-20","2024-07-26"]
[31,2,null,null,31,7,{"$f":"COUNTIF($F$1:$F31,F31)","v":4},"2024-07-27","2024-08-02"]
[32,2,null,null,32,8,{"$f":"COUNTIF($F$1:$F32,F32)","v":1},"2024-08-03","2024-08-09"]
[33,2,null,null,33,8,{"$f":"COUNTIF($F$1:$F33,F33)","v":2},"2024-08-10","2024-08-16"]
[34,2,null,null,34,8,{"$f":"COUNTIF($F$1:$F34,F34)","v":3},"2024-08-17","2024-08-23"]
[35,2,null,null,35,8,{"$f":"COUNTIF($F$1:$F35,F35)","v":4},"2024-08-24","2024-08-30"]
[36,2,null,null,36,8,{"$f":"COUNTIF($F$1:$F36,F36)","v":5},"2024-08-31","2024-09-06"]
[37,2,null,null,37,9,{"$f":"COUNTIF($F$1:$F37,F37)","v":1},"2024-09-07","2024-09-13"]
[38,2,null,null,38,9,{"$f":"COUNTIF($F$1:$F38,F38)","v":2},"2024-09-14","2024-09-20"]
[39,3,null,null,39,9,{"$f":"COUNTIF($F$1:$F39,F39)","v":3},"2024-09-21","2024-09-27"]
[40,3,null,null,40,9,{"$f":"COUNTIF($F$1:$F40,F40)","v":4},"2024-09-28","2024-10-04"]
[41,null,0,null,41,10,{"$f":"COUNTIF($F$1:$F41,F41)","v":1},"2024-10-05","2024-10-11"]
[42,null,730,null,42,10,{"$f":"COUNTIF($F$1:$F42,F42)","v":2},"2024-10-12","2024-10-18"]
[43,null,730,null,43,10,{"$f":"COUNTIF($F$1:$F43,F43)","v":3},"2024-10-19","2024-10-25"]
[44,null,730,null,44,10,{"$f":"COUNTIF($F$1:$F44,F44)","v":4},"2024-10-26","2024-11-01"]
[45,null,730,null,45,11,{"$f":"COUNTIF($F$1:$F45,F45)","v":1},"2024-11-02","2024-11-08"]
[46,null,730,null,46,11,{"$f":"COUNTIF($F$1:$F46,F46)","v":2},"2024-11-09","2024-11-15"]
[47,null,730,null,47,11,{"$f":"COUNTIF($F$1:$F47,F47)","v":3},"2024-11-16","2024-11-22"]
[48,null,7300,null,48,11,{"$f":"COUNTIF($F$1:$F48,F48)","v":4},"2024-11-23","2024-11-29"]
[49,null,10000,null,49,11,{"$f":"COUNTIF($F$1:$F49,F49)","v":5},"2024-11-30","2024-12-06"]
[50,null,50,null,50,12,{"$f":"COUNTIF($F$1:$F50,F50)","v":1},"2024-12-07","2024-12-13"]
[51,0.1,null,null,51,12,{"$f":"COUNTIF($F$1:$F51,F51)","v":2},"2024-12-14","2024-12-20"]
[52,0.5,null,null,52,12,{"$f":"COUNTIF($F$1:$F52,F52)","v":3},"2024-12-21","2024-12-27"]
[53,0.5,null,null,53,12,{"$f":"COUNTIF($F$1:$F53,F53)","v":4},"2024-12-28","2025-01-03"]
[54,1]
[55,2]
[56,2]
[57,2]
[58,2]
[59,2]
[60,2]
[61,2]
[62,2]
[63,3]
[64,3]
[65,3]
[66,null,5830]
[67,null,5830]
[68,null,5830]
[69,1]
[70,1]
[71,0.2]
[72,2]
[73,0.4]
[74,1]
[75,2]
[76,null,1900]
[77,3]
[78,null,730]
[79,1]
[80,null,370]
[81,null,1460]
[82,null,220,"n° otorgantes"]
[83,null,730]
[84,null,220]
[85,null,220]
[86,null,220]
[87,null,220]
[88,1]
[89,1]
[90,null,50]
[91,0.3]
[92,0.3]
[93,0.3]
[94,null,0]
[95,null,0]
[96,null,0]
[97,null,0]
[98,null,0]
[99,null,3]
[100,null,70]
[101,null,0]
[102,null,0]
[999,null,730]

{"sheet":"2025","index":4,"n_rows":100,"n_cols":15,"rows_kept":100,"cut":false,"hidden":true,"merged":[]}
[1,1,null,2025,1,13,{"$f":"COUNTIF($F$1:$F1,F1)","v":1},{"$f":"DATE($D$1,1,1) - WEEKDAY(DATE($D$1,1,1),16) +1 +(E1-1)*7 +$D$11","v":"2024-12-28"},{"$f":"H1+6","v":"2025-01-03"},null,null,null,1,1]
[2,0.2,null,null,2,{"$f":"MONTH(H2+$D$10)","v":1},{"$f":"COUNTIF($F$1:$F2,F2)","v":1},{"$f":"DATE($D$1,1,1) - WEEKDAY(DATE($D$1,1,1),16) +1 +(E2-1)*7 +$D$11","v":"2025-01-04"},"2025-01-10",null,null,null,2,0.2]
[3,0.2,null,null,3,1,{"$f":"COUNTIF($F$1:$F3,F3)","v":2},"2025-01-11","2025-01-17",null,null,null,3,0.2]
[4,0.2,null,null,4,1,{"$f":"COUNTIF($F$1:$F4,F4)","v":3},"2025-01-18","2025-01-24",null,null,null,4,0.2]
[6,0.5,null,null,5,1,{"$f":"COUNTIF($F$1:$F5,F5)","v":4},"2025-01-25","2025-01-31",null,null,null,6,0.5]
[7,0.5,null,null,6,2,{"$f":"COUNTIF($F$1:$F6,F6)","v":1},"2025-02-01","2025-02-07",null,null,null,7,0.5]
[8,1,null,null,7,2,{"$f":"COUNTIF($F$1:$F7,F7)","v":2},"2025-02-08","2025-02-14",null,null,null,8,1]
[9,1,null,null,8,2,{"$f":"COUNTIF($F$1:$F8,F8)","v":3},"2025-02-15","2025-02-21",null,null,null,9,1]
[10,1,null,null,9,2,{"$f":"COUNTIF($F$1:$F9,F9)","v":4},"2025-02-22","2025-02-28",null,null,null,10,1]
[11,1,null,0,10,3,{"$f":"COUNTIF($F$1:$F10,F10)","v":1},"2025-03-01","2025-03-07",null,null,null,11,1]
[12,1,null,0,11,3,{"$f":"COUNTIF($F$1:$F11,F11)","v":2},"2025-03-08","2025-03-14",null,null,null,12,1]
[13,1,null,null,12,3,{"$f":"COUNTIF($F$1:$F12,F12)","v":3},"2025-03-15","2025-03-21",null,null,null,13,1]
[14,1,null,null,13,3,{"$f":"COUNTIF($F$1:$F13,F13)","v":4},"2025-03-22","2025-03-28",null,null,null,14,1]
[15,1,null,null,14,3,{"$f":"COUNTIF($F$1:$F14,F14)","v":5},"2025-03-29","2025-04-04",null,null,null,15,1]
[16,1,null,null,15,4,{"$f":"COUNTIF($F$1:$F15,F15)","v":1},"2025-04-05","2025-04-11",null,null,null,16,1]
[17,1,null,null,16,4,{"$f":"COUNTIF($F$1:$F16,F16)","v":2},"2025-04-12","2025-04-18",null,null,null,17,1]
[18,1,null,null,17,4,{"$f":"COUNTIF($F$1:$F17,F17)","v":3},"2025-04-19","2025-04-25",null,null,null,18,1]
[19,1,null,null,18,4,{"$f":"COUNTIF($F$1:$F18,F18)","v":4},"2025-04-26","2025-05-02",null,null,null,19,1]
[20,1,null,null,19,5,{"$f":"COUNTIF($F$1:$F19,F19)","v":1},"2025-05-03","2025-05-09",null,null,null,20,1]
[21,1,null,null,20,5,{"$f":"COUNTIF($F$1:$F20,F20)","v":2},"2025-05-10","2025-05-16",null,null,null,21,1]
[22,1,null,null,21,5,{"$f":"COUNTIF($F$1:$F21,F21)","v":3},"2025-05-17","2025-05-23",null,null,null,22,1]
[23,1,null,null,22,5,{"$f":"COUNTIF($F$1:$F22,F22)","v":4},"2025-05-24","2025-05-30",null,null,null,23,1]
[24,1,null,null,23,5,{"$f":"COUNTIF($F$1:$F23,F23)","v":5},"2025-05-31","2025-06-06",null,null,null,24,1]
[25,1,null,null,24,6,{"$f":"COUNTIF($F$1:$F24,F24)","v":1},"2025-06-07","2025-06-13",null,null,null,25,1]
[26,1,null,null,25,6,{"$f":"COUNTIF($F$1:$F25,F25)","v":2},"2025-06-14","2025-06-20",null,null,null,26,1]
[27,1,null,null,26,6,{"$f":"COUNTIF($F$1:$F26,F26)","v":3},"2025-06-21","2025-06-27",null,null,null,27,1]
[28,1,null,null,27,6,{"$f":"COUNTIF($F$1:$F27,F27)","v":4},"2025-06-28","2025-07-04",null,null,null,28,1]
[29,1.5,null,null,28,7,{"$f":"COUNTIF($F$1:$F28,F28)","v":1},"2025-07-05","2025-07-11",null,null,null,29,1.5]
[30,2,null,null,29,7,{"$f":"COUNTIF($F$1:$F29,F29)","v":2},"2025-07-12","2025-07-18",null,null,null,30,2]
[31,2,null,null,30,7,{"$f":"COUNTIF($F$1:$F30,F30)","v":3},"2025-07-19","2025-07-25",null,null,null,31,2]
[32,2,null,null,31,7,{"$f":"COUNTIF($F$1:$F31,F31)","v":4},"2025-07-26","2025-08-01",null,null,null,32,2]
[33,2,null,null,32,8,{"$f":"COUNTIF($F$1:$F32,F32)","v":1},"2025-08-02","2025-08-08",null,null,null,33,2]
[34,2,null,null,33,8,{"$f":"COUNTIF($F$1:$F33,F33)","v":2},"2025-08-09","2025-08-15",null,null,null,34,2]
[35,2,null,null,34,8,{"$f":"COUNTIF($F$1:$F34,F34)","v":3},"2025-08-16","2025-08-22",null,null,null,35,2]
[36,2,null,null,35,8,{"$f":"COUNTIF($F$1:$F35,F35)","v":4},"2025-08-23","2025-08-29",null,null,null,36,2]
[37,2,null,null,36,8,{"$f":"COUNTIF($F$1:$F36,F36)","v":5},"2025-08-30","2025-09-05",null,null,null,37,2]
[38,2,null,null,37,9,{"$f":"COUNTIF($F$1:$F37,F37)","v":1},"2025-09-06","2025-09-12",null,null,null,38,2]
[39,3,null,null,38,9,{"$f":"COUNTIF($F$1:$F38,F38)","v":2},"2025-09-13","2025-09-19",null,null,null,39,3]
[40,3,null,null,39,9,{"$f":"COUNTIF($F$1:$F39,F39)","v":3},"2025-09-20","2025-09-26",null,null,null,40,3]
[42,null,2300,null,40,9,{"$f":"COUNTIF($F$1:$F40,F40)","v":4},"2025-09-27","2025-10-03",null,null,null,42,null,2950]
[43,null,2300,null,41,10,{"$f":"COUNTIF($F$1:$F41,F41)","v":1},"2025-10-04","2025-10-10",null,null,null,43,null,2950]
[44,null,2300,null,42,10,{"$f":"COUNTIF($F$1:$F42,F42)","v":2},"2025-10-11","2025-10-17",null,null,null,44,null,2950]
[45,null,2300,null,43,10,{"$f":"COUNTIF($F$1:$F43,F43)","v":3},"2025-10-18","2025-10-24",null,null,null,45,null,2950]
[46,null,2300,null,44,10,{"$f":"COUNTIF($F$1:$F44,F44)","v":4},"2025-10-25","2025-10-31",null,null,null,46,null,2950]
[47,null,2300,null,45,11,{"$f":"COUNTIF($F$1:$F45,F45)","v":1},"2025-11-01","2025-11-07",null,null,null,47,null,2950]
[48,null,10000,null,46,11,{"$f":"COUNTIF($F$1:$F46,F46)","v":2},"2025-11-08","2025-11-14",null,null,null,48,null,12850]
[49,null,10000,null,47,11,{"$f":"COUNTIF($F$1:$F47,F47)","v":3},"2025-11-15","2025-11-21",null,null,null,49,null,12850]
[51,0.1,null,null,48,11,{"$f":"COUNTIF($F$1:$F48,F48)","v":4},"2025-11-22","2025-11-28",null,null,null,51,0.1]
[52,0.5,null,null,49,11,{"$f":"COUNTIF($F$1:$F49,F49)","v":5},"2025-11-29","2025-12-05",null,null,null,52,0.5]
[53,0.5,null,null,50,12,{"$f":"COUNTIF($F$1:$F50,F50)","v":1},"2025-12-06","2025-12-12",null,null,null,53,0.5]
[54,1,null,null,51,12,{"$f":"COUNTIF($F$1:$F51,F51)","v":2},"2025-12-13","2025-12-19",null,null,null,54,1]
[55,2,null,null,52,12,{"$f":"COUNTIF($F$1:$F52,F52)","v":3},"2025-12-20","2025-12-26",null,null,null,55,2]
[56,2,null,null,53,12,{"$f":"COUNTIF($F$1:$F53,F53)","v":4},"2025-12-27","2026-01-02",null,null,null,56,2]
[57,2,null,null,null,null,null,null,null,null,null,null,57,2]
[58,2,null,null,null,null,null,null,null,null,null,null,58,2]
[59,2,null,null,null,null,null,null,null,null,null,null,59,2]
[60,2,null,null,null,null,null,null,null,null,null,null,60,2]
[61,2,null,null,null,null,null,null,null,null,null,null,61,2]
[62,2,null,null,null,null,null,null,null,null,null,null,62,2]
[63,3,null,null,null,null,null,null,null,null,null,null,63,3]
[64,3,null,null,null,null,null,null,null,null,null,null,64,3]
[65,3,null,null,null,null,null,null,null,null,null,null,65,3]
[66,null,10000,null,null,null,null,null,null,null,null,null,66,null,12850]
[67,null,10000,null,null,null,null,null,null,null,null,null,67,null,12850]
[68,null,10000,null,null,null,null,null,null,null,null,null,68,null,12850]
[69,1,null,null,null,null,null,null,null,null,null,null,69,1]
[70,1,null,null,null,null,null,null,null,null,null,null,70,1]
[71,0.2,null,null,null,null,null,null,null,null,null,null,71,0.2]
[72,2,null,null,null,null,null,null,null,null,null,null,72,2]
[73,0.4,null,null,null,null,null,null,null,null,null,null,73,0.4]
[74,1,null,null,null,null,null,null,null,null,null,null,74,1]
[75,2,null,null,null,null,null,null,null,null,null,null,75,2]
[76,null,5900,null,null,null,null,null,null,null,null,null,76,null,7580]
[77,3,null,null,null,null,null,null,null,null,null,null,77,3]
[78,null,2300,null,null,null,null,null,null,null,null,null,78,null,2950]
[79,1,null,null,null,null,null,null,null,null,null,null,79,1]
[80,null,1200,null,null,null,null,null,null,null,null,null,80,null,1540]
[81,null,4500,null,null,null,null,null,null,null,null,null,81,null,5780]
[82,null,700,null,null,null,null,null,null,null,null,null,82,null,890]
[83,null,2300,"n° otorgantes",null,null,null,null,null,null,null,null,83,null,2950]
[84,null,700,null,null,null,null,null,null,null,null,null,84,null,890]
[85,null,700,null,null,null,null,null,null,null,null,null,85,null,890]
[86,null,700,null,null,null,null,null,null,null,null,null,86,null,890]
[87,null,700,null,null,null,null,null,null,null,null,null,87,null,890]
[88,1,null,null,null,null,null,null,null,null,null,null,88,1]
[89,1,null,null,null,null,null,null,null,null,null,null,89,1]
[90,null,50,null,null,null,null,null,null,null,null,null,90,null,50]
[91,0.3,null,null,null,null,null,null,null,null,null,null,91,0.3]
[92,0.3,null,null,null,null,null,null,null,null,null,null,92,0.3]
[93,0.3,null,null,null,null,null,null,null,null,null,null,93,0.3]
[94,null,0,null,null,null,null,null,null,null,null,null,94,null,0]
[95,null,0,null,null,null,null,null,null,null,null,null,95,null,0]
[96,null,0,null,null,null,null,null,null,null,null,null,96,null,0]
[97,null,0,null,null,null,null,null,null,null,null,null,97,null,0]
[98,null,0,null,null,null,null,null,null,null,null,null,98,null,0]
[99,null,3,null,null,null,null,null,null,null,null,null,99,null,3]
[100,null,280,null,null,null,null,null,null,null,null,null,100,null,600]
[101,null,0,null,null,null,null,null,null,null,null,null,101,null,0]
[102,null,0,null,null,null,null,null,null,null,null,null,102,null,0]
[999,null,2300,null,null,null,null,null,null,null,null,null,999,null,2950]

{"sheet":"2026","index":5,"n_rows":184,"n_cols":9,"rows_kept":184,"cut":false,"hidden":true,"merged":[]}
[2,null,12850,2026,1,1,{"$f":"COUNTIF($F$1:$F1,F1)","v":1},{"$f":"DATE($D$1,1,1) - WEEKDAY(DATE($D$1,1,1),16) +1 +(E1-1)*7 +$D$11","v":"2026-01-03"},{"$f":"H1+6","v":"2026-01-09"}]
[3,3,null,null,2,{"$f":"MONTH(H2+$D$10)","v":1},{"$f":"COUNTIF($F$1:$F2,F2)","v":2},"2026-01-10","2026-01-16"]
[4,1,null,null,3,1,{"$f":"COUNTIF($F$1:$F3,F3)","v":3},"2026-01-17","2026-01-23"]
[5,1,null,null,4,1,{"$f":"COUNTIF($F$1:$F4,F4)","v":4},"2026-01-24","2026-01-30"]
[6,1.5,null,null,5,1,{"$f":"COUNTIF($F$1:$F5,F5)","v":5},"2026-01-31","2026-02-06"]
[7,1,null,null,6,2,{"$f":"COUNTIF($F$1:$F6,F6)","v":1},"2026-02-07","2026-02-13"]
[8,2,null,null,7,2,{"$f":"COUNTIF($F$1:$F7,F7)","v":2},"2026-02-14","2026-02-20"]
[9,1,null,null,8,2,{"$f":"COUNTIF($F$1:$F8,F8)","v":3},"2026-02-21","2026-02-27"]
[10,2,null,null,9,2,{"$f":"COUNTIF($F$1:$F9,F9)","v":4},"2026-02-28","2026-03-06"]
[11,1,null,0,10,3,{"$f":"COUNTIF($F$1:$F10,F10)","v":1},"2026-03-07","2026-03-13"]
[12,1,null,7,11,3,{"$f":"COUNTIF($F$1:$F11,F11)","v":2},"2026-03-14","2026-03-20"]
[13,2,null,null,12,3,{"$f":"COUNTIF($F$1:$F12,F12)","v":3},"2026-03-21","2026-03-27"]
[14,1,null,null,13,3,{"$f":"COUNTIF($F$1:$F13,F13)","v":4},"2026-03-28","2026-04-03"]
[15,2,null,null,14,4,{"$f":"COUNTIF($F$1:$F14,F14)","v":1},"2026-04-04","2026-04-10"]
[16,2,null,null,15,4,{"$f":"COUNTIF($F$1:$F15,F15)","v":2},"2026-04-11","2026-04-17"]
[17,2,null,null,16,4,{"$f":"COUNTIF($F$1:$F16,F16)","v":3},"2026-04-18","2026-04-24"]
[18,2,null,null,17,4,{"$f":"COUNTIF($F$1:$F17,F17)","v":4},"2026-04-25","2026-05-01"]
[19,2,null,null,18,5,{"$f":"COUNTIF($F$1:$F18,F18)","v":1},"2026-05-02","2026-05-08"]
[20,1,null,null,19,5,{"$f":"COUNTIF($F$1:$F19,F19)","v":2},"2026-05-09","2026-05-15"]
[21,2,null,null,20,5,{"$f":"COUNTIF($F$1:$F20,F20)","v":3},"2026-05-16","2026-05-22"]
[22,1,null,null,21,5,{"$f":"COUNTIF($F$1:$F21,F21)","v":4},"2026-05-23","2026-05-29"]
[23,1,null,null,22,5,{"$f":"COUNTIF($F$1:$F22,F22)","v":5},"2026-05-30","2026-06-05"]
[24,null,2950,null,23,6,{"$f":"COUNTIF($F$1:$F23,F23)","v":1},"2026-06-06","2026-06-12"]
[25,3,null,null,24,6,{"$f":"COUNTIF($F$1:$F24,F24)","v":2},"2026-06-13","2026-06-19"]
[26,0.5,null,null,25,6,{"$f":"COUNTIF($F$1:$F25,F25)","v":3},"2026-06-20","2026-06-26"]
[27,1,null,null,26,6,{"$f":"COUNTIF($F$1:$F26,F26)","v":4},"2026-06-27","2026-07-03"]
[28,3,null,null,27,7,{"$f":"COUNTIF($F$1:$F27,F27)","v":1},"2026-07-04","2026-07-10"]
[29,3,null,null,28,7,{"$f":"COUNTIF($F$1:$F28,F28)","v":2},"2026-07-11","2026-07-17"]
[30,1,null,null,29,7,{"$f":"COUNTIF($F$1:$F29,F29)","v":3},"2026-07-18","2026-07-24"]
[31,2,null,null,30,7,{"$f":"COUNTIF($F$1:$F30,F30)","v":4},"2026-07-25","2026-07-31"]
[32,1,null,null,31,8,{"$f":"COUNTIF($F$1:$F31,F31)","v":1},"2026-08-01","2026-08-07"]
[33,3,null,null,32,8,{"$f":"COUNTIF($F$1:$F32,F32)","v":2},"2026-08-08","2026-08-14"]
[34,null,2950,null,33,8,{"$f":"COUNTIF($F$1:$F33,F33)","v":3},{"$f":"DATE($D$1,1,1) - WEEKDAY(DATE($D$1,1,1),16) +1 +(E33-1)*7 +$D$11","v":"2026-08-15"},"2026-08-21"]
[35,1,null,null,34,{"$f":"MONTH(H34+$D$10)","v":8},{"$f":"COUNTIF($F$1:$F34,F34)","v":4},"2026-08-22","2026-08-28"]
[36,1,null,null,35,8,{"$f":"COUNTIF($F$1:$F35,F35)","v":5},"2026-08-29","2026-09-04"]
[37,1,null,null,36,9,{"$f":"COUNTIF($F$1:$F36,F36)","v":1},"2026-09-05","2026-09-11"]
[38,1,null,null,37,9,{"$f":"COUNTIF($F$1:$F37,F37)","v":2},"2026-09-12","2026-09-18"]
[39,2,null,null,38,9,{"$f":"COUNTIF($F$1:$F38,F38)","v":3},"2026-09-19","2026-09-25"]
[40,1,null,null,39,9,{"$f":"COUNTIF($F$1:$F39,F39)","v":4},"2026-09-26","2026-10-02"]
[41,2,null,null,40,10,{"$f":"COUNTIF($F$1:$F40,F40)","v":1},"2026-10-03","2026-10-09"]
[42,1,null,null,41,10,{"$f":"COUNTIF($F$1:$F41,F41)","v":2},"2026-10-10","2026-10-16"]
[43,1,null,null,42,10,{"$f":"COUNTIF($F$1:$F42,F42)","v":3},"2026-10-17","2026-10-23"]
[44,2,null,null,43,10,{"$f":"COUNTIF($F$1:$F43,F43)","v":4},"2026-10-24","2026-10-30"]
[45,null,5780,null,44,10,{"$f":"COUNTIF($F$1:$F44,F44)","v":5},"2026-10-31","2026-11-06"]
[46,0.1,null,null,45,11,{"$f":"COUNTIF($F$1:$F45,F45)","v":1},"2026-11-07","2026-11-13"]
[47,1,null,null,46,11,{"$f":"COUNTIF($F$1:$F46,F46)","v":2},"2026-11-14","2026-11-20"]
[48,1,null,null,47,11,{"$f":"COUNTIF($F$1:$F47,F47)","v":3},"2026-11-21","2026-11-27"]
[49,1,null,null,48,11,{"$f":"COUNTIF($F$1:$F48,F48)","v":4},"2026-11-28","2026-12-04"]
[50,1,null,null,49,12,{"$f":"COUNTIF($F$1:$F49,F49)","v":1},"2026-12-05","2026-12-11"]
[51,1,null,null,50,12,{"$f":"COUNTIF($F$1:$F50,F50)","v":2},"2026-12-12","2026-12-18"]
[52,1,null,null,51,12,{"$f":"COUNTIF($F$1:$F51,F51)","v":3},"2026-12-19","2026-12-25"]
[53,0.2,null,null,52,12,{"$f":"COUNTIF($F$1:$F52,F52)","v":4},"2026-12-26","2027-01-01"]
[54,1,null,null,53,13,{"$f":"COUNTIF($F$1:$F53,F53)","v":1},"2027-01-02","2027-01-08"]
[55,2]
[56,null,2950]
[57,null,12850]
[58,null,12850]
[59,null,12850]
[60,null,12850]
[61,null,12850]
[62,null,12850]
[63,null,12850]
[64,null,12850]
[65,null,12850]
[66,null,12850]
[67,null,12850]
[68,null,12850]
[69,null,12850]
[70,null,12850]
[71,null,12850]
[72,2]
[73,1]
[74,1]
[75,1]
[76,1]
[77,1]
[78,2]
[79,1]
[80,null,2950]
[81,1]
[82,null,2950]
[83,null,2950]
[84,0.2]
[85,1]
[86,0.5]
[87,1]
[88,1]
[89,2]
[90,1]
[91,1]
[92,1]
[93,1]
[94,1]
[95,2]
[96,1]
[97,1]
[98,null,12850]
[99,1]
[100,2]
[101,2]
[102,1]
[103,2]
[104,3]
[105,0.2]
[106,2]
[107,1]
[108,0]
[109,0]
[110,0]
[111,0]
[112,0]
[113,0]
[114,0]
[115,0]
[116,0]
[117,0.5]
[118,0.5]
[119,null,12850]
[120,2]
[121,2]
[122,2]
[123,1]
[124,1]
[125,1]
[127,0]
[128,1]
[129,null,12850]
[130,null,12850]
[133,1]
[134,3]
[135,null,2950]
[136,1]
[137,null,1540]
[138,1]
[139,1]
[140,1]
[141,2]
[142,2]
[143,1]
[144,1]
[145,1]
[146,1]
[147,1]
[148,1]
[149,1]
[150,1]
[151,1]
[152,1]
[153,1]
[154,1]
[155,1]
[300,1]
[301,1]
[302,1]
[303,0.2]
[304,2]
[305,0.4]
[306,2]
[307,null,7580]
[308,null,890]
[309,null,2950]
[310,null,890]
[311,null,890]
[312,null,890]
[313,null,890]
[314,1]
[315,1]
[316,null,600]
[400,null,50]
[401,0.3]
[402,0.3]
[403,0.3]
[404,0]
[405,0]
[406,0]
[407,0]
[408,0]
[409,3]
[1000,0]
[1007,0]
[1008,0]
[1012,0]
[1013,0]
[999]